bitfinex/quotes_ETHUSD_20250403
["timestamp","ask_amount","ask_price","bid_price","bid_amount"]
[1743718381882,0.1,1810.9,1810.8,5.52242]
[1743718382183,0.1,1810.9,1810.8,5.71905546]
[1743718383082,0.1,1810.9,1810.8,6.50135546]
[1743718383276,0.1,1810.9,1810.8,6.55656407]
[1743718385763,0.1,1810.9,1810.8,7.10656407]
[1743718385964,0.1,1810.9,1810.8,8.95083455]
[1743718386158,1e-05,1810.9,1810.8,11.95083455]
[1743718386386,1e-05,1810.9,1810.8,11.89562594]
[1743718387082,1e-05,1810.9,1810.8,17.30662594]
[1743718390866,1e-05,1810.9,1810.8,11.89562594]
[1743718398090,1e-05,1810.9,1810.8,8.89562594]
[1743718398394,1e-05,1810.9,1810.8,11.89562594]
[1743718398695,1e-05,1810.9,1810.8,10.56332594]
[1743718399099,1e-05,1810.9,1810.8,11.11332594]
[1743718400111,0.82051,1810.9,1810.8,5.71905546]
[1743718403110,0.82051,1810.9,1810.8,0.19663546]
[1743718404107,0.82051,1810.9,1810.8,5.71905546]
[1743718404310,0.82051,1810.9,1810.8,0.19663546]
[1743718404886,0.82051,1810.9,1810.6,11.04598]
[1743718405077,0.82051,1810.9,1810.8,0.17424118]
[1743718405278,0.82051,1810.9,1810.7,5.69696844]
[1743718405481,0.82051,1810.9,1810.8,0.17424118]
[1743718406180,0.82051,1810.9,1810.8,0.17664118]
[1743718406379,0.82051,1810.9,1810.6,11.04588]
[1743718406616,0.82051,1810.9,1810.8,0.17664118]
[1743718406918,0.634253,1810.9,1810.6,5.52288]
[1743718407092,0.634253,1810.9,1810.7,5.52264]
[1743718407093,0.8313,1810.8,1810.7,5.52264]
[1743718407682,5.57729657,1810.9,1810.5,5.52321]
[1743718407922,0.8313,1810.7,1810.5,5.52321]
[1743718408128,0.8313,1810.7,1810.5,5.57843719]
[1743718408420,0.8313,1810.7,1810.6,5.52303]
[1743718408793,0.8313,1810.7,1810.5,11.04644]
[1743718409014,0.8313,1810.7,1810.5,5.52321]
[1743718409329,0.8313,1810.7,1810.5,11.04644]
[1743718409540,0.8313,1810.7,1810.5,5.52321]
[1743718409717,0.8313,1810.7,1810.5,11.04641]
[1743718410048,0.8313,1810.7,1810.5,11.0464]
[1743718410201,0.8313,1810.7,1810.5,5.5232]
[1743718410533,0.8313,1810.7,1810.5,11.04642]
[1743718410706,0.8313,1810.7,1810.5,5.5232]
[1743718410912,0.8313,1810.7,1810.6,5.52303]
[1743718414523,1e-05,1810.9,1810.8,5.52242]
[1743718415347,1e-05,1810.9,1810.8,5.57763004]
[1743718415546,1e-05,1810.9,1810.8,5.52242]
[1743718417238,1e-05,1810.9,1810.8,5.57763264]
[1743718417439,1e-05,1810.9,1810.8,5.52242]
[1743718417639,1e-05,1810.9,1810.8,6.62692]
[1743718420230,1e-05,1810.9,1810.8,6.68213272]
[1743718420761,1e-05,1810.9,1810.8,6.62692]
[1743718420963,1e-05,1810.9,1810.8,6.68213274]
[1743718421363,1e-05,1810.9,1810.8,6.62692]
[1743718421763,1e-05,1810.9,1810.8,6.80463342]
[1743718421958,1e-05,1810.9,1810.8,6.85984617]
[1743718422158,1e-05,1810.9,1810.8,6.80463342]
[1743718422467,0.77711,1810.9,1810.8,6.80463342]
[1743718423563,0.77711,1810.9,1810.8,5.70013342]
[1743718424662,6.29922,1810.9,1810.8,0.17771342]
[1743718424966,6.35435657,1810.9,1810.6,11.04582]
[1743718425266,0.7771,1810.8,1810.7,0.1628981]
[1743718425567,1.41253566,1810.8,1810.7,0.1628981]
[1743718426353,1.41253566,1810.8,1810.5,11.04634]
[1743718426557,1.41253566,1810.8,1810.7,0.16374338]
[1743718426759,1.46767223,1810.8,1810.5,11.04634]
[1743718426954,1.46767223,1810.8,1810.7,0.16374338]
[1743718427158,1.41253566,1810.8,1810.6,0.16385066]
[1743718427468,1.41253566,1810.8,1810.5,11.04634]
[1743718427668,1.41253566,1810.8,1810.7,0.16374338]
[1743718427876,1.41253566,1810.8,1810.2,0.8059]
[1743718427877,6.35495657,1810.7,1810.6,0.1508755]
[1743718428082,5.52373,1810.4,1810.0,5.52481]
[1743718428284,0.7771,1810.3,1810.1,5.52448]
[1743718428473,0.7771,1810.3,1810.1,11.04887]
[1743718428785,0.7771,1810.3,1810.1,5.52439]
[1743718429378,0.7771,1810.3,1810.1,5.52438]
[1743718430036,0.7771,1810.3,1810.1,11.04879]
[1743718430236,0.7771,1810.3,1810.2,5.52425]
[1743718431488,0.7771,1810.3,1810.1,5.52438]
[1743718431783,0.7771,1810.3,1810.0,5.52485]
[1743718431949,0.7771,1810.3,1810.0,11.04955]
[1743718432150,0.7771,1810.3,1810.1,5.52441]
[1743718432960,0.7771,1810.3,1810.0,5.5247]
[1743718433284,0.7771,1810.3,1810.0,11.0494]
[1743718433783,0.7771,1810.3,1810.0,5.5247]
[1743718434082,0.7771,1810.3,1810.0,11.04942]
[1743718434271,0.7771,1810.3,1810.0,5.5247]
[1743718434470,1.96509766,1810.3,1810.0,5.5247]
[1743718434985,0.7771,1810.2,1809.9,5.52502]
[1743718435283,6.35659657,1810.2,1809.9,5.52502]
[1743718435580,11.88101657,1810.2,1809.9,5.52502]
[1743718435756,11.88101657,1810.2,1809.8,5.5254]
[1743718435757,0.7771,1810.0,1809.8,5.5254]
[1743718436689,0.7771,1810.0,1809.9,5.52516]
[1743718436876,0.7771,1810.0,1809.9,5.66827633]
[1743718437047,0.7771,1810.0,1809.9,0.14311633]
[1743718437252,0.7771,1810.0,1809.8,5.52532]
[1743718437649,0.7771,1810.0,1809.9,0.14311633]
[1743718437854,1.96525066,1810.0,1809.7,5.52571]
[1743718438087,1.96525066,1810.0,1809.8,0.1432237]
[1743718439377,1.96525066,1810.0,1809.8,5.6686637]
[1743718439688,0.7771,1810.0,1809.8,5.6686637]
[1743718440284,0.7771,1810.0,1809.8,11.1939837]
[1743718440599,0.7771,1810.0,1809.8,0.1432237]
[1743718440753,0.05513657,1809.9,1809.8,0.1432237]
[1743718441086,0.791,1809.6,1809.3,5.52672]
[1743718441288,1.47781757,1809.6,1809.3,5.52672]
[1743718441487,7.00390757,1809.6,1809.2,5.52728]
[1743718441686,5.52639,1809.5,1809.2,5.52728]
[1743718441863,6.948771,1809.6,1809.2,11.05447]
[1743718442069,1.422681,1809.6,1809.4,5.52638]
[1743718442271,0.791,1809.6,1809.5,5.52638]
[1743718442592,6.2,1809.8,1809.6,5.52608]
[1743718442958,6.2,1809.8,1809.6,5.52592]
[1743718445386,5.5249,1810.0,1809.6,5.52592]
[1743718445387,0.791,1810.0,1809.8,5.52517]
[1743718445588,0.791,1810.0,1809.9,5.52516]
[1743718445797,5.409,1810.1,1810.0,5.52486]
[1743718446790,5.409,1810.1,1809.9,5.52516]
[1743718446991,11.92681912,1810.1,1809.8,5.52545]
[1743718447196,0.7517,1810.0,1809.8,5.52533]
[1743718447491,6.1607,1810.1,1810.0,5.52486]
[1743718447658,6.01,1810.2,1810.0,11.04972]
[1743718447863,11.419,1810.2,1810.0,11.04972]
[1743718448065,45.9577,1810.5,1810.2,5.52404]
[1743718448297,5.30096486,1810.4,1810.3,5.52394]
[1743718448483,45.9577,1810.5,1810.3,5.66906066]
[1743718448864,45.9577,1810.5,1810.3,5.52394]
[1743718449560,45.9577,1810.5,1810.2,5.52404]
[1743718449761,5.57891657,1810.4,1810.0,11.04961]
[1743718449967,0.7517,1810.3,1810.1,0.14533531]
[1743718450268,1.93714866,1810.3,1810.1,0.14533531]
[1743718451197,6.33108657,1810.2,1810.1,0.14533531]
[1743718451496,5.52464,1810.1,1809.8,5.52546]
[1743718451690,0.05513657,1810.0,1809.8,5.52546]
[1743718451993,10.98877657,1810.1,1809.9,0.14515884]
[1743718452195,5.409,1810.1,1809.8,11.05083]
[1743718452391,5.46413657,1810.1,1809.9,5.67022884]
[1743718452706,5.409,1810.1,1809.9,0.14515884]
[1743718452898,5.52486,1810.0,1809.9,0.14515884]
[1743718453064,10.93365,1810.1,1809.8,5.52535]
[1743718453266,5.5249,1810.0,1809.7,5.52565]
[1743718453497,12.70138866,1810.0,1809.9,0.14515884]
[1743718453685,7.17626866,1810.0,1809.8,0.14526621]
[1743718453885,7.17626866,1810.0,1809.7,5.52577]
[1743718454078,0.7517,1809.9,1809.7,5.52577]
[1743718454599,0.7517,1809.9,1809.7,11.05144]
[1743718454896,0.7517,1809.9,1809.7,5.52567]
[1743718455096,0.7517,1809.9,1809.6,5.52602]
[1743718455393,0.7517,1809.9,1809.5,0.8304]
[1743718455700,0.7517,1809.9,1809.7,5.52561]
[1743718456717,0.7517,1809.9,1809.6,5.52601]
[1743718456928,6.27688,1809.9,1809.6,5.52593]
[1743718457077,6.27688,1809.9,1809.6,11.0519]
[1743718457276,0.7517,1809.9,1809.6,5.52593]
[1743718457603,0.7517,1809.9,1809.6,11.0519]
[1743718457770,0.7517,1809.9,1809.7,5.52575]
[1743718458178,6.27704,1809.9,1809.6,11.05186]
[1743718458413,0.7517,1809.9,1809.7,5.52567]
[1743718458583,0.8324,1810.0,1809.8,5.52547]
[1743718458777,0.8324,1810.0,1809.8,11.05083]
[1743718458980,0.8324,1810.0,1809.7,5.52554]
[1743718459177,0.8324,1810.0,1809.8,5.52537]
[1743718459378,6.35741,1810.0,1809.7,5.52554]
[1743718459604,0.8324,1810.0,1809.7,5.52554]
[1743718460707,6.35728,1810.0,1809.7,11.05118]
[1743718461008,0.88753657,1810.0,1809.7,5.52554]
[1743718461181,0.8324,1810.0,1809.8,5.52533]
[1743718461602,6.35729,1810.0,1809.7,11.05118]
[1743718461812,6.41242657,1810.0,1809.7,11.05118]
[1743718462102,6.35729,1810.0,1809.7,5.52554]
[1743718462314,0.8324,1810.0,1809.7,5.52554]
[1743718462515,0.88753657,1810.0,1809.8,5.52537]
[1743718462704,6.41242657,1810.0,1809.7,5.52554]
[1743718462915,0.88753657,1810.0,1809.8,5.52541]
[1743718463115,0.8324,1810.0,1809.8,5.52541]
[1743718463833,0.8324,1810.0,1809.8,11.05075]
[1743718464028,6.25463657,1810.1,1809.8,5.52537]
[1743718464234,12.95720323,1810.1,1809.8,5.52537]
[1743718464533,12.90206666,1810.1,1809.8,5.52537]
[1743718464729,12.90206666,1810.1,1809.7,5.5255]
[1743718464934,0.05513657,1810.0,1809.7,11.05118]
[1743718465138,5.58000657,1810.0,1809.7,11.05118]
[1743718465308,0.05513657,1810.0,1809.8,5.52536]
[1743718465508,12.90206666,1810.1,1809.8,5.52536]
[1743718465908,0.05513657,1810.0,1809.8,5.52536]
[1743718466333,12.90206666,1810.1,1809.8,5.52536]
[1743718466535,5.58010657,1810.0,1809.7,5.52573]
[1743718466737,5.52532,1809.9,1809.6,5.52604]
[1743718466902,0.84563657,1809.8,1809.5,5.52628]
[1743718467108,6.37123657,1809.8,1809.5,5.52628]
[1743718467541,11.89685657,1809.8,1809.5,5.52628]
[1743718467781,7.97471051,1809.8,1809.5,5.52618]
[1743718467958,8.02973708,1809.8,1809.4,11.05321]
[1743718468111,8.02973708,1809.8,1809.4,5.52654]
[1743718468311,13.55535708,1809.8,1809.4,11.05311]
[1743718468649,16.45977,1809.7,1809.4,5.52654]
[1743718468940,12.82469805,1809.7,1809.4,5.52654]
[1743718472564,7.29888805,1809.7,1809.4,11.05309]
[1743718472764,12.87979462,1809.7,1809.4,5.52654]
[1743718472932,7.41665805,1809.7,1809.4,5.52654]
[1743718473268,11.418,1810.0,1809.8,5.52521]
[1743718473463,5.408,1810.0,1809.6,5.52602]
[1743718473656,5.408,1810.0,1809.7,5.52576]
[1743718473657,0.05513657,1809.9,1809.7,5.52576]
[1743718474033,0.05513657,1809.9,1809.6,5.52598]
[1743718474236,5.58030657,1809.9,1809.6,11.05191]
[1743718474568,5.58030657,1809.9,1809.6,5.52593]
[1743718474767,0.05513657,1809.9,1809.6,11.0519]
[1743718475070,0.05513657,1809.9,1809.6,5.52593]
[1743718475272,0.05513657,1809.9,1809.7,5.52568]
[1743718475561,0.05513657,1809.9,1809.7,5.52567]
[1743718476570,0.05513657,1809.9,1809.6,5.52607]
[1743718476740,0.8126,1809.8,1809.5,5.52626]
[1743718476940,0.86773657,1809.8,1809.6,5.52605]
[1743718477872,1.15393823,1809.9,1809.7,5.52568]
[1743718478282,6.2206,1810.0,1809.8,5.52535]
[1743718478448,6.2206,1810.0,1809.8,11.05068]
[1743718479175,11.80072657,1810.0,1809.7,5.52571]
[1743718479339,17.27063,1810.0,1809.7,5.52571]
[1743718479741,11.74559,1810.0,1809.7,5.52571]
[1743718480969,6.75486557,1809.9,1809.6,5.52601]
[1743718481163,5.58030657,1809.9,1809.6,5.52599]
[1743718481337,5.58030657,1809.9,1809.6,11.05196]
[1743718481872,5.58030657,1809.9,1809.7,0.14898192]
[1743718482172,6.33818,1809.8,1809.5,11.05259]
[1743718482377,0.8126,1809.8,1809.6,5.52601]
[1743718482585,0.86773657,1809.8,1809.6,5.52601]
[1743718482871,0.86773657,1809.8,1809.6,11.052]
[1743718483074,5.407,1809.9,1809.7,5.52577]
[1743718483373,5.407,1809.9,1809.7,11.05142]
[1743718483543,5.407,1809.9,1809.7,5.52565]
[1743718483743,5.407,1809.9,1809.8,5.52547]
[1743718483966,5.407,1809.9,1809.7,5.52565]
[1743718484164,5.407,1809.9,1809.7,11.05131]
[1743718485179,5.407,1809.9,1809.8,5.52547]
[1743718487385,5.407,1809.9,1809.7,11.0513]
[1743718487793,5.407,1809.9,1809.8,5.52547]
[1743718497007,5.407,1809.9,1809.8,5.67360532]
[1743718504683,5.405,1810.2,1810.1,5.52439]
[1743718505022,0.8212,1810.5,1810.3,5.52377]
[1743718505333,5.405,1810.5,1810.4,5.67065301]
[1743718505812,5.405,1810.5,1810.4,5.52364]
[1743718505983,5.405,1810.5,1810.4,0.14701301]
[1743718506185,10.68988512,1810.5,1810.2,5.52418]
[1743718506384,10.68988512,1810.5,1810.3,0.14555548]
[1743718506586,0.8149,1810.4,1810.3,0.14555548]
[1743718507422,10.63474855,1810.5,1810.3,11.19343548]
[1743718507589,10.14938512,1810.5,1810.3,11.19343548]
[1743718507789,5.405,1810.5,1810.4,5.52364]
[1743718508013,5.405,1810.5,1810.4,5.66908817]
[1743718508818,5.405,1810.5,1810.4,0.14544817]
[1743718508989,6.2199,1810.5,1810.3,5.52381]
[1743718509189,6.2199,1810.5,1810.4,0.14475288]
[1743718509389,6.2199,1810.5,1810.3,5.52381]
[1743718509621,6.2199,1810.5,1810.4,0.14475288]
[1743718509815,6.2199,1810.5,1810.3,5.52381]
[1743718510024,6.2199,1810.5,1810.4,0.14475288]
[1743718510201,6.2199,1810.5,1810.3,5.52379]
[1743718510395,6.2199,1810.5,1810.4,0.14475288]
[1743718510605,6.2199,1810.5,1810.3,5.52379]
[1743718510805,6.2199,1810.5,1810.4,0.14475288]
[1743718511009,6.2199,1810.5,1810.3,11.04758]
[1743718511199,6.2199,1810.5,1810.4,0.14475288]
[1743718511532,5.52376,1810.4,1810.1,5.52449]
[1743718511716,4.74438512,1810.3,1810.0,11.04955]
[1743718511896,5.55928512,1810.3,1810.2,0.14522823]
[1743718512527,5.55928512,1810.3,1810.0,11.04956]
[1743718512697,5.55928512,1810.3,1810.0,5.52474]
[1743718512898,6.66758963,1810.3,1810.1,0.14533557]
[1743718513426,5.52425,1810.2,1810.1,0.14533557]
[1743718513632,0.8149,1810.2,1809.9,11.05013]
[1743718513930,0.8149,1810.2,1810.0,0.14652942]
[1743718514100,0.8149,1810.2,1810.0,5.67125942]
[1743718514299,0.8149,1810.2,1810.0,0.14652942]
[1743718514501,0.05513657,1810.1,1810.0,0.14652942]
[1743718516742,15.67193512,1810.1,1810.0,0.14652942]
[1743718516909,15.61679855,1810.1,1810.0,0.14652942]
[1743718517109,15.61679855,1810.1,1809.8,11.05075]
[1743718517318,15.61679855,1810.1,1810.0,0.14652942]
[1743718517514,10.09224855,1810.1,1809.9,5.67172678]
[1743718517739,5.403,1810.1,1810.0,0.14652942]
[1743718517938,5.403,1810.1,1810.0,5.67126942]
[1743718518235,5.403,1810.1,1810.0,6.86617936]
[1743718518812,0.88453657,1810.3,1810.1,5.52432]
[1743718519014,5.45813657,1810.4,1810.2,5.66965183]
[1743718519212,5.45813657,1810.4,1810.1,5.52432]
[1743718519428,5.51864855,1810.3,1810.2,0.14540183]
[1743718519631,13.24503906,1810.3,1810.0,5.52482]
[1743718519835,0.05513657,1810.2,1810.1,0.14550916]
[1743718520036,5.403,1810.4,1810.2,5.52396]
[1743718520246,5.45813657,1810.4,1810.2,11.04799]
[1743718520442,5.45813657,1810.4,1810.3,5.66923451]
[1743718520613,5.403,1810.4,1810.3,5.66923451]
[1743718520941,0.8294,1810.5,1810.3,5.66909451]
[1743718521141,12.2424,1810.8,1810.5,5.52312]
[1743718521363,12.2424,1810.8,1810.6,5.52291]
[1743718521540,5.403,1810.8,1810.7,5.52272]
[1743718521845,5.403,1810.8,1810.7,5.66523885]
[1743718522235,5.40301,1810.9,1810.8,5.52242]
[1743718522807,5.40301,1810.9,1810.8,5.66483159]
[1743718523051,1e-05,1810.9,1810.8,5.66483159]
[1743718525320,1e-05,1810.9,1810.8,6.78357375]
[1743718526029,1e-05,1810.9,1810.8,5.66483159]
[1743718528153,1e-05,1810.9,1810.8,6.53675264]
[1743718528448,1e-05,1810.9,1810.8,6.48153159]
[1743718528643,1e-05,1810.9,1810.8,6.53674292]
[1743718528822,1e-05,1810.9,1810.8,6.48153159]
[1743718529029,1e-05,1810.9,1810.8,7.68194375]
[1743718529414,1e-05,1810.9,1810.8,11.28715505]
[1743718529767,1e-05,1810.9,1810.8,11.23194375]
[1743718530551,1e-05,1810.9,1810.8,22.79294375]
[1743718534524,1e-05,1810.9,1810.8,13.84194375]
[1743718534946,1e-05,1810.9,1810.8,14.39194375]
[1743718535446,1e-05,1810.9,1810.8,17.39194375]
[1743718537724,1e-05,1810.9,1810.8,11.23194375]
[1743718543133,1e-05,1810.9,1810.8,15.9211923]
[1743718546767,1e-05,1810.9,1810.8,22.0811923]
[1743718547670,1e-05,1810.9,1810.8,16.07894375]
[1743718547888,1e-05,1810.9,1810.8,13.07894375]
[1743718548185,1e-05,1810.9,1810.8,16.62894375]
[1743718549640,1e-05,1810.9,1810.8,11.23194375]
[1743718551338,1e-05,1810.9,1810.8,10.41524375]
[1743718553560,1e-05,1810.9,1810.8,8.66483159]
[1743718553755,0.77881,1810.9,1810.8,5.66483159]
[1743718555840,0.77881,1810.9,1810.8,5.72004997]
[1743718556385,1e-05,1810.9,1810.8,6.21483159]
[1743718556587,1e-05,1810.9,1810.8,10.03114073]
[1743718556878,1e-05,1810.9,1810.8,12.13877152]
[1743718557084,1e-05,1810.9,1810.8,12.08356366]
[1743718558464,1e-05,1810.9,1810.8,16.77281221]
[1743718559765,0.67881,1811.3,1811.2,5.5212]
[1743718560155,0.67881,1811.3,1811.2,5.64099043]
[1743718560966,0.43,1811.5,1811.4,5.52059]
[1743718561378,0.43,1811.5,1811.4,5.64016604]
[1743718562889,1.2088,1811.5,1811.4,5.64016604]
[1743718567377,1.2088,1811.5,1811.4,0.11957604]
[1743718567784,0.8026,1811.4,1811.3,5.52076]
[1743718568157,0.8026,1811.4,1811.2,11.04222]
[1743718568895,0.8026,1811.4,1811.2,5.52109]
[1743718569059,0.8026,1811.2,1811.1,5.5214]
[1743718569491,0.8026,1811.1,1810.4,0.8215]
[1743718569692,0.8026,1810.8,1810.6,5.52275]
[1743718570067,0.8026,1810.8,1810.7,5.52272]
[1743718571867,5.396,1810.9,1810.7,5.52272]
[1743718572213,5.396,1810.9,1810.8,5.52242]
[1743718572695,0.8026,1811.0,1810.9,5.52211]
[1743718572866,0.8026,1811.0,1810.9,5.63117895]
[1743718573596,0.8026,1811.0,1810.9,0.10906895]
[1743718573968,0.8026,1811.0,1810.8,5.52242]
[1743718574179,0.8026,1811.0,1810.9,0.10906895]
[1743718574586,0.8026,1811.0,1810.8,5.52242]
[1743718574786,0.8026,1811.0,1810.9,0.10906895]
[1743718574986,0.8026,1811.0,1810.9,5.63117895]
[1743718575188,0.8026,1811.0,1810.9,5.52211]
[1743718575586,0.8026,1811.0,1810.9,5.63117895]
[1743718576997,0.8026,1811.0,1810.9,0.10906895]
[1743718577721,0.8026,1811.0,1810.8,5.5223]
[1743718577924,0.8026,1811.0,1810.9,0.10906895]
[1743718578072,12.73785755,1811.0,1810.9,0.10906895]
[1743718578272,5.52251,1810.8,1810.5,5.52326]
[1743718578477,0.8026,1810.6,1810.5,5.52326]
[1743718578709,0.8026,1810.6,1810.4,11.04718]
[1743718578910,0.8026,1810.6,1810.4,5.52359]
[1743718579071,0.8026,1810.6,1810.4,11.899539]
[1743718579277,0.8026,1810.6,1810.5,5.52333]
[1743718579697,0.8026,1810.6,1810.4,6.375949]
[1743718580007,0.8026,1810.6,1810.5,5.52333]
[1743718580309,0.8026,1810.6,1810.4,6.375949]
[1743718580775,0.05513657,1810.5,1810.3,5.52392]
[1743718580980,0.8026,1810.4,1810.2,5.52406]
[1743718581193,0.8026,1810.4,1810.3,5.52394]
[1743718582115,0.8026,1810.4,1810.2,5.52406]
[1743718582280,0.8026,1810.4,1810.2,11.600606]
[1743718582481,0.8026,1810.4,1810.2,6.076466]
[1743718583913,0.8026,1810.4,1810.2,5.52406]
[1743718584284,0.8026,1810.4,1810.3,5.52394]
[1743718584906,0.8026,1810.4,1810.2,11.0482]
[1743718585107,0.8026,1810.4,1810.2,5.52406]
[1743718585514,0.05513657,1810.3,1810.1,5.52449]
[1743718585887,16.53932855,1810.4,1810.1,5.52449]
[1743718586086,0.05513657,1810.3,1810.1,5.52449]
[1743718586286,5.57908657,1810.3,1810.0,5.52485]
[1743718586483,5.57908657,1810.3,1810.0,12.154585]
[1743718586683,0.05513657,1810.3,1810.1,5.52453]
[1743718586891,0.05513657,1810.3,1810.2,0.1142437]
[1743718587085,0.05513657,1810.3,1810.0,11.04949]
[1743718587302,0.05513657,1810.3,1810.1,0.11612995]
[1743718587691,5.57914657,1810.3,1810.1,0.11612995]
[1743718588036,0.8247,1810.2,1810.1,0.11612995]
[1743718588220,5.51394855,1810.2,1810.1,0.11612995]
[1743718588520,12.73673098,1810.2,1809.9,5.52506]
[1743718588699,11.03819855,1810.2,1809.9,5.52506]
[1743718588901,16.56270855,1810.2,1810.0,0.1162373]
[1743718589288,11.03819855,1810.2,1810.1,0.11612995]
[1743718589693,11.03819855,1810.2,1809.9,5.52508]
[1743718589894,11.03819855,1810.2,1810.0,0.1162373]
[1743718591026,13.23401941,1810.2,1810.0,0.1162373]
[1743718591323,18.75842941,1810.2,1810.0,0.1162373]
[1743718591527,13.23401941,1810.2,1810.0,0.1162373]
[1743718591704,13.23401941,1810.2,1809.9,5.52513]
[1743718591912,13.23401941,1810.2,1810.0,0.1162373]
[1743718593401,6.01,1810.4,1810.3,5.52394]
[1743718593402,6.8347,1810.4,1810.3,5.52394]
[1743718593608,6.01,1810.4,1810.3,5.52394]
[1743718593809,6.2217,1810.6,1810.5,5.52333]
[1743718593810,0.8247,1810.6,1810.5,5.52333]
[1743718594004,6.2217,1810.9,1810.6,5.52282]
[1743718594230,6.27683657,1810.9,1810.7,5.52266]
[1743718594398,6.27683657,1810.9,1810.7,5.64057638]
[1743718594804,6.27683657,1810.9,1810.7,0.11791638]
[1743718595022,13.44776708,1810.9,1810.7,0.11791638]
[1743718595305,13.39263051,1810.9,1810.6,5.52282]
[1743718595500,0.05513657,1810.8,1810.6,5.52282]
[1743718595706,0.05513657,1810.8,1810.7,0.11587682]
[1743718596134,0.05513657,1810.8,1810.7,5.52272]
[1743718596304,6.27683657,1810.9,1810.7,5.63859682]
[1743718597037,6.27683657,1810.9,1810.7,5.63848682]
[1743718597618,6.27683657,1810.9,1810.7,11.16109682]
[1743718598020,6.27683657,1810.9,1810.7,0.11587682]
[1743718598410,6.27683657,1810.9,1810.6,5.52289]
[1743718598613,6.27683657,1810.9,1810.8,0.11576956]
[1743718598833,6.27683657,1810.9,1810.7,5.63845682]
[1743718599042,6.27683657,1810.9,1810.7,5.52258]
[1743718599238,6.27683657,1810.9,1810.8,0.11576956]
[1743718599616,11.79894657,1810.9,1810.6,5.52297]
[1743718599812,18.63406606,1810.9,1810.8,0.11576956]
[1743718600017,5.52242,1810.8,1810.7,0.11587682]
[1743718600218,5.52242,1810.8,1810.5,5.52328]
[1743718600553,0.05513657,1810.7,1810.5,5.52328]
[1743718601122,0.05513657,1810.7,1810.5,11.04646]
[1743718601321,0.05513657,1810.8,1810.6,5.52303]
[1743718601529,0.05513657,1810.8,1810.5,5.52318]
[1743718601858,10.98709855,1810.7,1810.3,11.04771]
[1743718602153,0.05513657,1810.6,1810.3,5.5238]
[1743718602355,0.05513657,1810.6,1810.4,5.52364]
[1743718602719,0.05513657,1810.6,1810.3,5.5238]
[1743718602952,0.05513657,1810.6,1810.3,11.04765]
[1743718603734,5.57817657,1810.6,1810.3,5.5238]
[1743718603943,0.7751,1810.5,1810.3,5.5238]
[1743718604543,0.7751,1810.3,1810.1,5.52445]
[1743718604724,0.7751,1810.3,1810.1,5.52441]
[1743718604924,0.7751,1810.3,1810.0,11.04958]
[1743718605150,0.05513657,1810.2,1810.0,11.04958]
[1743718605563,0.05513657,1810.2,1810.0,5.52476]
[1743718605853,0.7751,1810.3,1810.0,11.04947]
[1743718605854,0.83023657,1810.3,1810.0,11.04947]
[1743718606968,0.83023657,1810.3,1810.0,5.52471]
[1743718607172,0.83023657,1810.3,1810.0,11.04943]
[1743718607341,0.83023657,1810.3,1810.0,5.52471]
[1743718607542,6.35420657,1810.3,1810.0,5.52471]
[1743718607769,5.52439,1810.2,1809.9,5.52512]
[1743718608081,0.7751,1810.0,1809.9,5.52512]
[1743718608367,0.7751,1810.0,1809.8,5.52541]
[1743718608839,0.7751,1810.0,1809.8,5.52533]
[1743718610163,0.7751,1810.0,1809.7,5.52573]
[1743718610469,4.68924855,1809.9,1809.6,5.52594]
[1743718610670,0.05513657,1809.8,1809.6,5.52594]
[1743718610835,0.7751,1809.7,1809.6,5.52594]
[1743718611240,0.05513657,1809.8,1809.7,5.52577]
[1743718611442,5.51948512,1809.9,1809.7,5.52577]
[1743718612593,5.51948512,1809.9,1809.6,5.52594]
[1743718612793,5.51948512,1809.9,1809.6,11.05193]
[1743718612966,5.51948512,1809.9,1809.7,5.52576]
[1743718614379,10.92061,1810.1,1809.8,5.52537]
[1743718614380,10.86744855,1810.1,1809.8,5.52537]
[1743718614580,0.05513657,1810.0,1809.8,5.52537]
[1743718616199,0.05513657,1810.0,1809.7,5.52577]
[1743718616371,0.8249,1809.9,1809.7,5.52577]
[1743718616880,0.8249,1809.9,1809.8,0.12092266]
[1743718617301,11.03930855,1809.9,1809.6,5.52599]
[1743718617482,0.05513657,1809.8,1809.6,11.05194]
[1743718617682,0.05513657,1809.8,1809.6,11.05192]
[1743718618203,0.05513657,1809.8,1809.6,11.05188]
[1743718618498,0.05513657,1809.8,1809.6,5.52593]
[1743718618806,0.05513657,1809.8,1809.6,11.05187]
[1743718619101,0.05513657,1809.8,1809.7,5.52577]
[1743718619401,0.05513657,1810.0,1809.8,11.05094]
[1743718619606,0.05513657,1810.0,1809.8,5.52547]
[1743718620104,0.05513657,1810.0,1809.7,11.0514]
[1743718620971,0.05513657,1810.0,1809.8,5.52545]
[1743718621905,5.45113657,1810.0,1809.8,5.52545]
[1743718622109,5.396,1810.0,1809.9,5.52516]
[1743718624708,10.92094,1810.0,1809.7,5.52569]
[1743718624913,1.14723057,1809.9,1809.7,5.52577]
[1743718625115,6.66137912,1809.9,1809.7,11.05154]
[1743718625280,5.56928512,1809.9,1809.7,5.52564]
[1743718625481,0.88003657,1809.9,1809.7,5.52564]
[1743718625681,0.88003657,1809.9,1809.7,11.0513]
[1743718626115,0.88003657,1809.9,1809.7,5.52564]
[1743718626407,0.88003657,1809.9,1809.6,5.526]
[1743718626611,0.88003657,1809.9,1809.7,5.52572]
[1743718626910,0.88003657,1809.9,1809.7,5.52566]
[1743718627482,6.40520657,1809.9,1809.6,5.52598]
[1743718627683,8.13782123,1809.9,1809.6,5.52598]
[1743718628001,7.30189978,1809.9,1809.5,5.52635]
[1743718628199,10.21503855,1809.7,1809.4,5.52656]
[1743718628403,0.8249,1809.5,1809.4,5.52656]
[1743718628997,0.8249,1809.5,1809.4,0.12126543]
[1743718629200,17.74729921,1809.5,1809.1,11.15496]
[1743718629513,0.05513657,1809.4,1809.2,5.64947505]